fUST/lending_fUST_20250713
["ID","MTS","AMOUNT","RATE_DAILY","PERIOD"]
[371631720,1752369042407,-2482.0,0.00017616,2]
[371631722,1752369042416,-2482.0,0.00017643,2]
[371631724,1752369042425,-151.0,0.00017665,2]
[371631726,1752369042435,-12595.82069269,0.00017665,2]
[371631728,1752369042445,-160.0,0.00017665,2]
[371631730,1752369042454,-230.64269914,0.00017665,2]
[371631732,1752369042463,-838.37930271,0.00017665,2]
[371631734,1752369042473,-836.80557099,0.00017666,2]
[371631736,1752369042482,-215.38668925,0.00017666,2]
[371631738,1752369042492,-214.25614385,0.00017666,2]
[371631740,1752369042502,-2482.0,0.00017671,2]
[371631742,1752369042512,-165.862233,0.00017694,2]
[371631744,1752369042521,-2482.0,0.00017698,2]
[371631746,1752369042530,-2482.0,0.00017726,2]
[371631748,1752369042539,-2482.0,0.00017753,2]
[371631750,1752369042550,-2482.0,0.0001778,2]
[371631752,1752369042559,-165.862233,0.00017787,2]
[371631754,1752369042569,-2482.0,0.00017808,2]
[371631756,1752369042579,-460.0,0.00017808,2]
[371631758,1752369042588,-460.0,0.00017808,2]
[371631760,1752369042598,-460.0,0.00017808,2]
[371631762,1752369042607,-460.0,0.00017808,2]
[371631764,1752369042616,-460.0,0.00017808,2]
[371631766,1752369042625,-460.0,0.00017808,2]
[371631768,1752369042635,-461.4,0.00017808,2]
[371631770,1752369042644,-460.0,0.00017808,2]
[371631772,1752369042654,-460.0,0.00017808,2]
[371631774,1752369042664,-460.0,0.00017808,2]
[371631776,1752369042673,-460.0,0.00017808,2]
[371631778,1752369042682,-460.0,0.00017808,2]
[371631780,1752369042692,-460.0,0.00017808,2]
[371631782,1752369042701,-249.46,0.00017808,2]
[371631784,1752369042710,-460.0,0.00017808,2]
[371631786,1752369042720,-460.0,0.00017808,2]
[371631788,1752369042729,-460.0,0.00017808,2]
[371631790,1752369042738,-460.0,0.00017808,2]
[371631792,1752369042749,-548.09,0.00017808,2]
[371631794,1752369042758,-460.0,0.00017808,2]
[371631796,1752369042767,-460.0,0.00017808,2]
[371631798,1752369042777,-947.87,0.00017808,2]
[371631800,1752369042786,-460.0,0.00017808,2]
[371631802,1752369042797,-460.0,0.00017808,2]
[371631805,1752369042807,-151.0,0.00017808,2]
[371631809,1752369042817,-460.0,0.00017808,2]
[371631811,1752369042827,-460.0,0.00017808,2]
[371631813,1752369042837,-460.0,0.00017808,2]
[371631815,1752369042846,-151.0,0.00017808,2]
[371631817,1752369042857,-460.0,0.00017808,2]
[371631819,1752369042866,-460.0,0.00017808,2]
[371631821,1752369042876,-460.0,0.00017808,2]
[371631823,1752369042886,-460.0,0.00017808,2]
[371631825,1752369042896,-151.0,0.00017808,2]
[371631827,1752369042905,-460.0,0.00017808,2]
[371631829,1752369042915,-215.69,0.00017808,2]
[371631831,1752369042924,-460.0,0.00017808,2]
[371631833,1752369042933,-460.0,0.00017808,2]
[371631835,1752369042943,-151.0,0.00017808,2]
[371631837,1752369042952,-460.0,0.00017808,2]
[371631839,1752369042961,-460.0,0.00017808,2]
[371631841,1752369042971,-460.0,0.00017808,2]
[371631843,1752369042980,-512.17,0.00017808,2]
[371631845,1752369042990,-596.31,0.00017808,2]
[371631847,1752369042999,-151.0,0.00017808,2]
[371631848,1752369043008,-460.0,0.00017808,2]
[371631850,1752369043018,-151.0,0.00017808,2]
[371631852,1752369043027,-460.0,0.00017808,2]
[371631855,1752369043037,-151.0,0.00017808,2]
[371631856,1752369043046,-460.0,0.00017808,2]
[371631859,1752369043056,-460.0,0.00017808,2]
[371631861,1752369043066,-460.0,0.00017808,2]
[371631863,1752369043075,-460.0,0.00017808,2]
[371631865,1752369043084,-460.0,0.00017808,2]
[371631867,1752369043093,-460.0,0.00017808,2]
[371631868,1752369043103,-460.0,0.00017808,2]
[371631869,1752369043112,-1237.49,0.00017808,2]
[371631870,1752369043121,-460.0,0.00017808,2]
[371631871,1752369043131,-837.38,0.00017808,2]
[371631872,1752369043140,-630.56879618,0.00017831,2]
[371631873,1752369043150,-2482.0,0.00017835,2]
[371631874,1752369043159,-2482.0,0.00017863,2]
[371631875,1752369043169,-165.862233,0.0001788,2]
[371631876,1752369043178,-2482.0,0.0001789,2]
[371631877,1752369043187,-2482.0,0.00017917,2]
[371631878,1752369043197,-2482.0,0.00017945,2]
[371631879,1752369043206,-313.0,0.00017963,2]
[371631880,1752369043215,-500.0,0.00017968,2]
[371631881,1752369043224,-2495.45188498,0.00017972,2]
[371631882,1752369043234,-165.862233,0.00017972,2]
[371631883,1752369043243,-228.316214,0.00017982,2]
[371631884,1752369043253,-151.0,0.00017982,2]
[371631885,1752369043263,-151.0,0.00017982,2]
[371631886,1752369043272,-151.0,0.00017982,2]
[371631887,1752369043282,-151.0,0.00017982,2]
[371631888,1752369043292,-151.0,0.00017982,2]
[371631889,1752369043301,-151.0,0.00017982,2]
[371631890,1752369043310,-151.0,0.00017982,2]
[371631891,1752369043319,-317.16441,0.00017982,2]
[371631892,1752369043328,-151.0,0.00017982,2]
[371631893,1752369043338,-317.16441,0.00017982,2]
[371631894,1752369043347,-165.862233,0.00018065,2]
[371631895,1752369043358,-1500.0,0.00018068,2]
[371631896,1752369043367,-1500.0,0.00018068,2]
[371631897,1752369043376,-495.76,0.00018072,3]
[371631899,1752369043386,-500.0,0.00018081,2]
[371631900,1752369043396,-483.13,0.00018082,2]
[371631902,1752369043405,-460.0,0.00018082,2]
[371631904,1752369043415,-460.0,0.00018082,2]
[371631906,1752369043424,-361.94178256,0.00018082,2]
[371631908,1752369043433,-460.0,0.00018082,2]
[371631910,1752369043443,-460.0,0.00018082,2]
[371631912,1752369043452,-460.0,0.00018082,2]
[371631915,1752369043462,-460.0,0.00018082,2]
[371631917,1752369043471,-151.0,0.00018082,2]
[371631919,1752369043480,-460.0,0.00018082,2]
[371631921,1752369043489,-460.0,0.00018082,2]
[371631923,1752369043498,-184.33,0.00018082,2]
[371631925,1752369043507,-460.0,0.00018082,2]
[371631927,1752369043517,-460.0,0.00018082,2]
[371631930,1752369043526,-513.03,0.00018082,2]
[371631933,1752369043535,-293.8,0.00018082,2]
[371631936,1752369043544,-548.09,0.00018082,2]
[371631939,1752369043554,-534.063984,0.00018082,2]
[371631941,1752369043563,-534.063984,0.00018082,2]
[371631943,1752369043572,-460.0,0.00018082,2]
[371631945,1752369043581,-947.87,0.00018082,2]
[371631947,1752369043591,-460.0,0.00018082,2]
[371631949,1752369043600,-460.0,0.00018082,2]
[371631951,1752369043611,-151.0,0.00018082,2]
[371631953,1752369043620,-460.0,0.00018082,2]
[371631955,1752369043629,-460.0,0.00018082,2]
[371631957,1752369043639,-460.0,0.00018082,2]
[371631959,1752369043648,-460.0,0.00018082,2]
[371631961,1752369043657,-460.0,0.00018082,2]
[371631962,1752369043667,-460.0,0.00018082,2]
[371631964,1752369043676,-227.97,0.00018082,2]
[371631966,1752369043687,-460.0,0.00018082,2]
[371631968,1752369043696,-213.00705976,0.00018082,2]
[371631970,1752369043705,-332.2,0.00018082,2]
[371631973,1752369043715,-232.31,0.00018082,2]
[371631974,1752369043724,-460.0,0.00018082,2]
[371631976,1752369043734,-512.17,0.00018082,2]
[371631978,1752369043743,-460.0,0.00018082,2]
[371631980,1752369043753,-460.0,0.00018082,2]
[371631983,1752369043762,-460.0,0.00018082,2]
[371631985,1752369043772,-460.0,0.00018082,2]
[371631987,1752369043781,-460.0,0.00018082,2]
[371631989,1752369043791,-521.39,0.00018082,2]
[371631991,1752369043803,-151.0,0.00018082,2]
[371631993,1752369043813,-460.0,0.00018082,2]
[371631995,1752369043822,-460.0,0.00018082,2]
[371631997,1752369043831,-460.0,0.00018082,2]
[371631999,1752369043840,-1237.49,0.00018082,2]
[371632001,1752369043850,-630.56879618,0.00018141,2]
[371632003,1752369043860,-165.862233,0.00018157,2]
[371632005,1752369043869,-165.862233,0.0001825,2]
[371632007,1752369043880,-165.862233,0.00018343,2]
[371632009,1752369043889,-163.22387918,0.00018356,2]
[371632011,1752369043898,-194.49569457,0.00018356,2]
[371632013,1752369043907,-460.0,0.00018356,2]
[371632014,1752369043916,-460.0,0.00018356,2]
[371632017,1752369043926,-460.0,0.00018356,2]
[371632019,1752369043935,-504.3,0.00018356,2]
[371632021,1752369043945,-460.0,0.00018356,2]
[371632023,1752369043954,-460.0,0.00018356,2]
[371632024,1752369043963,-460.0,0.00018356,2]
[371632028,1752369043976,-548.09,0.00018356,2]
[371632030,1752369043985,-460.0,0.00018356,2]
[371632034,1752369043995,-947.87,0.00018356,2]
[371632036,1752369044004,-460.0,0.00018356,2]
[371632039,1752369044014,-356.86,0.00018356,2]
[371632043,1752369044024,-460.0,0.00018356,2]
[371632045,1752369044033,-460.0,0.00018356,2]
[371632048,1752369044042,-460.0,0.00018356,2]
[371632050,1752369044051,-460.0,0.00018356,2]
[371632052,1752369044061,-460.0,0.00018356,2]
[371632054,1752369044072,-460.0,0.00018356,2]
[371632057,1752369044082,-460.0,0.00018356,2]
[371632058,1752369044096,-460.0,0.00018356,2]
[371632060,1752369044106,-512.17,0.00018356,2]
[371632062,1752369044115,-460.0,0.00018356,2]
[371632064,1752369044125,-412.96,0.00018356,2]
[371632069,1752369044162,-460.0,0.00018356,2]
[371632071,1752369044172,-151.0,0.00018356,2]
[371632073,1752369044182,-460.0,0.00018356,2]
[371632075,1752369044191,-460.0,0.00018356,2]
[371632077,1752369044201,-460.0,0.00018356,2]
[371632080,1752369044213,-460.0,0.00018356,2]
[371632082,1752369044223,-173.22,0.00018356,2]
[371632083,1752369044232,-1237.49,0.00018356,2]
[371632085,1752369044242,-165.862233,0.00018435,2]
[371632087,1752369044251,-630.56879618,0.00018452,2]
[371632089,1752369044261,-165.862233,0.00018528,2]
[371632091,1752369044270,-500.0,0.00018616,2]
[371632094,1752369044280,-2000.0,0.00018616,2]
[371632096,1752369044289,-165.862233,0.00018621,2]
[371632097,1752369044299,-460.0,0.0001863,2]
[371632099,1752369044309,-460.0,0.0001863,2]
[371632102,1752369044319,-460.0,0.0001863,2]
[371632103,1752369044328,-460.0,0.0001863,2]
[371632106,1752369044338,-460.0,0.0001863,2]
[371632108,1752369044347,-460.0,0.0001863,2]
[371632110,1752369044358,-548.09,0.0001863,2]
[371632112,1752369044367,-180.01,0.0001863,2]
[371632114,1752369044377,-947.87,0.0001863,2]
[371632116,1752369044386,-460.0,0.0001863,2]
[371632118,1752369044395,-460.0,0.0001863,2]
[371632120,1752369044405,-460.0,0.0001863,2]
[371632122,1752369044415,-460.0,0.0001863,2]
[371632123,1752369044424,-460.0,0.0001863,2]
[371632125,1752369044433,-460.0,0.0001863,2]
[371632127,1752369044443,-460.0,0.0001863,2]
[371632130,1752369044453,-460.0,0.0001863,2]
[371632132,1752369044462,-460.0,0.0001863,2]
[371632134,1752369044472,-512.17,0.0001863,2]
[371632136,1752369044481,-460.0,0.0001863,2]
[371632138,1752369044491,-460.0,0.0001863,2]
[371632140,1752369044500,-460.0,0.0001863,2]
[371632142,1752369044511,-460.0,0.0001863,2]
[371632144,1752369044520,-460.0,0.0001863,2]
[371632146,1752369044529,-460.0,0.0001863,2]
[371632148,1752369044538,-1237.49,0.0001863,2]
[371632149,1752369044548,-165.862233,0.00018713,2]
[371632151,1752369044557,-630.56879618,0.00018762,2]
[371632153,1752369044567,-500.0,0.000188,2]
[371632155,1752369044576,-500.0,0.000188,2]
[371632157,1752369044585,-500.0,0.000188,2]
[371632160,1752369044595,-500.0,0.000188,2]
[371632161,1752369044604,-500.0,0.000188,2]
[371632164,1752369044614,-165.862233,0.00018806,2]
[371632166,1752369044624,-431.07992252,0.00018842,2]
[371632167,1752369044633,-1829.90077161,0.00018865,2]
[371632169,1752369044643,-165.862233,0.00018898,2]
[371632171,1752369044653,-460.0,0.00018904,2]
[371632174,1752369044663,-460.0,0.00018904,2]
[371632176,1752369044673,-436.54,0.00018904,2]
[371632177,1752369044682,-460.0,0.00018904,2]
[371632180,1752369044692,-548.09,0.00018904,2]
[371632182,1752369044704,-947.87,0.00018904,2]
[371632183,1752369044713,-460.0,0.00018904,2]
[371632185,1752369044722,-460.0,0.00018904,2]
[371632187,1752369044732,-460.0,0.00018904,2]
[371632189,1752369044741,-460.0,0.00018904,2]
[371632191,1752369044751,-194.79,0.00018904,2]
[371632194,1752369044761,-179.03,0.00018904,2]
[371632195,1752369044771,-460.0,0.00018904,2]
[371632197,1752369044782,-583.6,0.00018904,2]
[371632199,1752369044792,-460.0,0.00018904,2]
[371632201,1752369044806,-512.17,0.00018904,2]
[371632203,1752369044815,-151.0,0.00018904,2]
[371632205,1752369044825,-460.0,0.00018904,2]
[371632207,1752369044834,-265.8855499,0.00018904,2]
[371632209,1752369044845,-151.0,0.00018904,2]
[371632211,1752369044854,-460.0,0.00018904,2]
[371632213,1752369044866,-460.0,0.00018904,2]
[371632215,1752369044876,-540.45650576,0.00018904,2]
[371632218,1752369044886,-424.41,0.00018904,2]
[371632219,1752369044895,-248.51,0.00018904,2]
[371632221,1752369044904,-1237.49,0.00018904,2]
[371632223,1752369044914,-500.0,0.00018999,2]
[371632225,1752369044923,-6595.7095599,0.00019,2]
[371632227,1752369044933,-630.56879618,0.00019072,2]
[371632229,1752369044942,-2500.0,0.00019164,2]
[371632231,1752369044952,-460.0,0.00019178,2]
[371632233,1752369044962,-460.0,0.00019178,2]
[371632235,1752369044972,-548.09,0.00019178,2]
[371632238,1752369044982,-947.87,0.00019178,2]
[371632240,1752369044992,-460.0,0.00019178,2]
[371632242,1752369045001,-151.0,0.00019178,2]
[371632244,1752369045011,-460.0,0.00019178,2]
[371632246,1752369045020,-460.0,0.00019178,2]
[371632248,1752369045030,-151.0,0.00019178,2]
[371632250,1752369045040,-460.0,0.00019178,2]
[371632252,1752369045049,-460.0,0.00019178,2]
[371632254,1752369045059,-151.0,0.00019178,2]
[371632256,1752369045068,-460.0,0.00019178,2]
[371632257,1752369045078,-512.17,0.00019178,2]
[371632260,1752369045088,-475.95,0.00019178,2]
[371632262,1752369045097,-460.0,0.00019178,2]
[371632264,1752369045109,-460.0,0.00019178,2]
[371632266,1752369045118,-151.0,0.00019178,2]
[371632268,1752369045128,-1237.49,0.00019178,2]
[371632270,1752369045138,-666.0,0.00019178,2]
[371632272,1752369045147,-213.153492,0.00019178,2]
[371632274,1752369045156,-151.0,0.0001926,2]
[371632276,1752369045166,-151.0,0.0001926,2]
[371632277,1752369045174,-151.0,0.00019287,2]
[371632278,1752369045184,-151.0,0.00019287,2]
[371632280,1752369045194,-688.32,0.000193,2]
[371632282,1752369045205,-151.0,0.00019315,2]
[371632284,1752369045216,-246.64289271,0.00019315,2]
[371632286,1752369045228,-151.0,0.00019329,2]
[371632288,1752369045237,-151.0,0.00019329,2]
[371632290,1752369045247,-151.0,0.00019329,2]
[371632292,1752369045257,-200.073703,0.00019329,2]
[371632294,1752369045266,-151.0,0.00019329,2]
[371632296,1752369045275,-151.0,0.00019329,2]
[371632298,1752369045285,-151.0,0.00019329,2]
[371632300,1752369045295,-151.0,0.00019329,2]
[371632302,1752369045305,-163.761619,0.00019329,2]
[371632304,1752369045319,-151.0,0.00019329,2]
[371632306,1752369045329,-151.0,0.00019329,2]
[371632308,1752369045338,-151.0,0.00019329,2]
[371632310,1752369045348,-151.0,0.00019329,2]
[371632312,1752369045358,-534.063984,0.00019329,2]
[371632314,1752369045368,-534.063984,0.00019329,2]
[371632316,1752369045377,-151.000001,0.00019329,2]
[371632318,1752369045387,-151.0,0.00019329,2]
[371632320,1752369045397,-151.0,0.00019329,2]
[371632322,1752369045407,-151.0,0.00019329,2]
[371632324,1752369045416,-317.16441,0.00019329,2]
[371632326,1752369045425,-151.0,0.00019329,2]
[371632328,1752369045434,-151.0,0.00019329,2]
[371632330,1752369045444,-317.16441,0.00019329,2]
[371632332,1752369045453,-151.0,0.00019329,2]
[371632334,1752369045462,-92890.90977376,0.00019329,2]
[371632336,1752369045471,-222.99778359,0.00019342,2]
[371632338,1752369045480,-500.0,0.00019348,2]
[371632340,1752369045490,-500.0,0.00019369,2]
[371632342,1752369045499,-630.56879618,0.00019383,2]
[371632344,1752369045510,-460.0,0.00019452,2]
[371632347,1752369045520,-548.09,0.00019452,2]
[371632348,1752369045531,-947.87,0.00019452,2]
[371632350,1752369045541,-460.0,0.00019452,2]
[371632353,1752369045551,-460.0,0.00019452,2]
[371632355,1752369045560,-460.0,0.00019452,2]
[371632357,1752369045570,-460.0,0.00019452,2]
[371632359,1752369045580,-460.0,0.00019452,2]
[371632361,1752369045591,-556.28,0.00019452,2]
[371632363,1752369045600,-512.17,0.00019452,2]
[371632365,1752369045610,-460.0,0.00019452,2]
[371632366,1752369045619,-460.0,0.00019452,2]
[371632368,1752369045629,-1237.49,0.00019452,2]
[371632371,1752369045639,-500.0,0.00019561,2]
[371632373,1752369045648,-630.56879618,0.00019693,2]
[371632374,1752369045658,-9094.43,0.000197,2]
[371632376,1752369045668,-3000.0,0.00019712,2]
[371632379,1752369045678,-460.0,0.00019726,2]
[371632381,1752369045688,-548.09,0.00019726,2]
[371632382,1752369045697,-947.87,0.00019726,2]
[371632385,1752369045707,-460.0,0.00019726,2]
[371632387,1752369045716,-606.92,0.00019726,2]
[371632388,1752369045726,-496.57,0.00019726,2]
[371632392,1752369045736,-460.0,0.00019726,2]
[371632395,1752369045746,-460.0,0.00019726,2]
[371632398,1752369045756,-512.17,0.00019726,2]
[371632400,1752369045767,-460.0,0.00019726,2]
[371632401,1752369045777,-460.0,0.00019726,2]
[371632403,1752369045786,-1237.49,0.00019726,2]
[371632405,1752369045797,-1000.0,0.00019852,2]
[371632407,1752369045809,-151.0,0.00019852,2]
[371632408,1752369045819,-151.0,0.00019852,2]
[371632409,1752369045828,-151.0,0.00019852,2]
[371632410,1752369045838,-151.0,0.00019852,2]
[371632411,1752369045848,-2256.14936259,0.00019852,2]
[371632412,1752369045858,-151.0,0.00019852,2]
[371632413,1752369045868,-151.0,0.00019852,2]
[371632414,1752369045878,-151.0,0.00019852,2]
[371632415,1752369045887,-151.0,0.00019852,2]
[371632417,1752369045897,-151.0,0.00019852,2]
[371632419,1752369045906,-151.0,0.00019852,2]
[371632421,1752369045916,-151.0,0.00019852,2]
[371632423,1752369045925,-151.0,0.00019852,2]
[371632425,1752369045934,-207.4,0.00019852,2]
[371632427,1752369045945,-151.0,0.00019863,2]
[371632429,1752369045955,-151.0,0.00019863,2]
[371632431,1752369045964,-151.0,0.00019863,2]
[371632433,1752369045974,-317.16441,0.00019863,2]
[371632435,1752369045983,-317.16441,0.00019863,2]
[371632437,1752369045993,-151.0,0.0001989,2]
[371632439,1752369046002,-69528.3680085,0.0002,2]
[371632441,1752369046012,-163.35081,0.0002,2]
[371632443,1752369046022,-157.36769,0.0002,2]
[371632445,1752369046031,-151.0,0.0002,2]
[371632447,1752369046041,-151.0,0.0002,2]
[371632449,1752369046051,-151.0,0.0002,2]
[371632451,1752369046070,-151.0,0.0002,2]
[371632453,1752369046083,-151.0,0.0002,2]
[371632456,1752369046093,-151.0,0.0002,2]
[371632457,1752369046102,-151.0,0.0002,2]
[371632460,1752369046115,-151.0,0.0002,2]
[371632462,1752369046124,-151.0,0.0002,2]
[371632464,1752369046134,-151.0,0.0002,2]
[371632466,1752369046144,-151.0,0.0002,2]
[371632468,1752369046154,-151.0,0.0002,2]
[371632470,1752369046164,-151.0,0.0002,2]
[371632472,1752369046173,-460.0,0.0002,2]
[371632474,1752369046184,-151.0,0.0002,2]
[371632476,1752369046193,-151.0,0.0002,2]
[371632478,1752369046203,-554.914179,0.0002,2]
[371632480,1752369046213,-554.914179,0.0002,2]
[371632482,1752369046223,-151.0,0.0002,2]
[371632484,1752369046233,-422.975,0.0002,2]
[371632486,1752369046243,-151.0,0.0002,2]
[371632488,1752369046253,-151.0,0.0002,2]
[371632490,1752369046263,-151.0,0.0002,2]
[371632492,1752369046273,-151.0,0.0002,2]
[371632494,1752369046284,-151.0,0.0002,2]
[371632496,1752369046294,-534.063984,0.0002,2]
[371632498,1752369046303,-548.09,0.0002,2]
[371632500,1752369046313,-534.063984,0.0002,2]
[371632502,1752369046324,-947.87,0.0002,2]
[371632504,1752369046333,-460.0,0.0002,2]
[371632506,1752369046343,-460.0,0.0002,2]
[371632508,1752369046352,-460.0,0.0002,2]
[371632511,1752369046366,-512.17,0.0002,2]
[371632513,1752369046375,-151.0,0.0002,2]
[371632515,1752369046386,-151.0,0.0002,2]
[371632517,1752369046396,-151.0,0.0002,2]
[371632519,1752369046406,-151.0,0.0002,2]
[371632521,1752369046415,-560.77,0.0002,2]
[371632523,1752369046425,-151.0,0.0002,2]
[371632525,1752369046435,-460.0,0.0002,2]
[371632527,1752369046444,-1237.49,0.0002,2]
[371632529,1752369046454,-630.56879618,0.00020003,2]
[371632531,1752369046463,-151.0,0.00020004,2]
[371632532,1752369046481,-151.0,0.00020004,2]
[371632534,1752369046491,-151.0,0.00020004,2]
[371632537,1752369046504,-317.16441,0.00020004,2]
[371632538,1752369046514,-317.16441,0.00020004,2]
[371632541,1752369046524,-431.07992252,0.00020094,2]
[371632543,1752369046534,-216.021268,0.00020187,2]
[371632545,1752369046543,-500.0,0.0002026,2]
[371632547,1752369046553,-460.0,0.00020273,2]
[371632549,1752369046563,-548.09,0.00020273,2]
[371632551,1752369046572,-947.87,0.00020273,2]
[371632553,1752369046581,-460.0,0.00020273,2]
[371632555,1752369046590,-460.0,0.00020273,2]
[371632557,1752369046601,-460.0,0.00020273,2]
[371632559,1752369046613,-151.0,0.00020273,2]
[371632561,1752369046622,-512.17,0.00020273,2]
[371632563,1752369046631,-460.0,0.00020273,2]
[371632565,1752369046641,-1237.49,0.00020273,2]
[371632567,1752369046651,-630.56879618,0.00020314,3]
[371632569,1752369046661,-548.09,0.00020547,2]
[371632571,1752369046670,-947.87,0.00020547,2]
[371632573,1752369046679,-460.0,0.00020547,2]
[371632575,1752369046688,-460.0,0.00020547,2]
[371632577,1752369046697,-266.91,0.00020547,2]
[371632579,1752369046707,-512.17,0.00020547,2]
[371632581,1752369046716,-460.0,0.00020547,2]
[371632583,1752369046726,-1237.49,0.00020547,2]
[371632585,1752369046736,-688.32,0.000206,2]
[371632587,1752369046746,-630.56879618,0.00020624,3]
[371632589,1752369046755,-244.5,0.000208,2]
[371632591,1752369046765,-548.09,0.00020821,2]
[371632593,1752369046775,-947.87,0.00020821,2]
[371632595,1752369046784,-460.0,0.00020821,2]
[371632598,1752369046797,-460.0,0.00020821,2]
[371632600,1752369046807,-512.17,0.00020821,2]
[371632602,1752369046817,-460.0,0.00020821,2]
[371632604,1752369046827,-1237.49,0.00020821,2]
[371632606,1752369046837,-1829.90077161,0.00020843,2]
[371632608,1752369046846,-630.56879618,0.00020934,4]
[371632610,1752369046856,-151.0,0.00020995,2]
[371632612,1752369046866,-151.0,0.00020995,2]
[371632614,1752369046877,-151.0,0.00020995,2]
[371632616,1752369046887,-151.0,0.00020995,2]
[371632618,1752369046897,-151.0,0.00020995,2]
[371632620,1752369046907,-9094.43,0.00021,2]
[371632622,1752369046916,-548.09,0.00021095,2]
[371632624,1752369046925,-947.87,0.00021095,2]
[371632626,1752369046935,-460.0,0.00021095,2]
[371632628,1752369046944,-460.0,0.00021095,2]
[371632630,1752369046954,-512.17,0.00021095,2]
[371632632,1752369046964,-460.0,0.00021095,2]
[371632634,1752369046974,-1237.49,0.00021095,2]
[371632636,1752369046983,-215.0738,0.00021221,2]
[371632638,1752369046994,-630.56879618,0.00021245,4]
[371632640,1752369047003,-157.36769,0.00021248,2]
[371632642,1752369047012,-548.09,0.00021369,2]
[371632644,1752369047022,-947.87,0.00021369,2]
[371632646,1752369047032,-569.39,0.00021369,2]
[371632648,1752369047041,-460.0,0.00021369,2]
[371632650,1752369047051,-512.17,0.00021369,2]
[371632652,1752369047061,-460.0,0.00021369,2]
[371632654,1752369047070,-1237.49,0.00021369,2]
[371632656,1752369047080,-289.292776,0.00021461,4]
[371632658,1752369047089,-151.0,0.00021533,2]
[371632661,1752369047099,-151.0,0.00021533,2]
[371632663,1752369047110,-630.56879618,0.00021555,5]
[371632665,1752369047120,-3000.0,0.00021588,2]
[371632667,1752369047129,-4000.0,0.00021612,2]
[371632669,1752369047139,-534.063984,0.00021612,2]
[371632671,1752369047149,-534.063984,0.00021612,2]
[371632673,1752369047159,-151.0,0.00021643,2]
[371632675,1752369047168,-151.0,0.00021643,2]
[371632677,1752369047178,-151.0,0.00021643,2]
[371632679,1752369047188,-548.09,0.00021643,2]
[371632681,1752369047197,-947.87,0.00021643,2]
[371632683,1752369047207,-460.0,0.00021643,2]
[371632685,1752369047217,-512.17,0.00021643,2]
[371632687,1752369047227,-317.16441,0.00021643,2]
[371632689,1752369047237,-317.16441,0.00021643,2]
[371632691,1752369047247,-460.0,0.00021643,2]
[371632693,1752369047257,-1237.49,0.00021643,2]
[371632696,1752369047267,-5000.0,0.00021726,3]
[371632698,1752369047277,-5000.0,0.00021842,3]
[371632700,1752369047287,-151.0,0.0002185,2]
[371632718,1752369047445,-151.0,0.0002185,2]
[371632720,1752369047457,-630.56879618,0.00021866,6]